fUST/lending_fUST_20251119
["ID","MTS","AMOUNT","RATE_DAILY","PERIOD"]
[394366527,1763497851206,-164.73604,0.000249,7]
[394366528,1763497851217,-164.736045,0.000249,7]
[394366529,1763497851226,-349.013375,0.000249,7]
[394366530,1763497851235,-349.013375,0.000249,7]
[394366531,1763497851244,-151.0,0.000249,7]
[394366532,1763497851253,-349.013375,0.000249,7]
[394366533,1763497851262,-349.013375,0.000249,7]
[394366534,1763497851271,-349.013375,0.000249,7]
[394366535,1763497851279,-349.013375,0.000249,7]
[394366536,1763497851288,-872.96969,0.000249,2]
[394366537,1763497851297,-872.96969,0.000249,2]
[394366538,1763497851305,-872.96969,0.000249,2]
[394366539,1763497851314,-872.969696,0.000249,2]
[394366540,1763497851323,-151.0,0.000249,7]
[394366541,1763497851332,-151.0,0.000249,7]
[394366542,1763497851341,-198.457429,0.000249,7]
[394366543,1763497851349,-198.457429,0.000249,7]
[394366544,1763497851358,-198.457429,0.000249,7]
[394366545,1763497851366,-198.457421,0.000249,7]
[394366546,1763497851377,-290.225471,0.000249,7]
[394366547,1763497851386,-290.225471,0.000249,7]
[394366548,1763497851394,-290.225471,0.000249,7]
[394366549,1763497851403,-290.225475,0.000249,7]
[394366550,1763497851412,-318.960952,0.000249,7]
[394366551,1763497851422,-318.960952,0.000249,7]
[394366552,1763497851431,-318.960952,0.000249,7]
[394366553,1763497851439,-318.960942,0.000249,7]
[394366554,1763497851451,-151.0,0.000249,7]
[394366555,1763497851460,-151.0,0.000249,7]
[394366556,1763497851468,-151.0,0.000249,7]
[394366557,1763497851477,-195.970212,0.000249,7]
[394366558,1763497851486,-151.0,0.000249,7]
[394366559,1763497851495,-195.970212,0.000249,7]
[394366560,1763497851504,-2513.128445,0.000249,7]
[394366561,1763497851512,-151.0,0.000249,7]
[394366562,1763497851521,-195.970212,0.000249,7]
[394366563,1763497851530,-2513.128445,0.000249,7]
[394366564,1763497851539,-151.0,0.000249,7]
[394366565,1763497851549,-195.970204,0.000249,7]
[394366566,1763497851558,-2513.128445,0.000249,7]
[394366567,1763497851566,-2513.12843941,0.000249,7]
[394366568,1763497851575,-164.276176,0.000249,7]
[394366569,1763497851584,-163.103612,0.000249,7]
[394366570,1763497851593,-248.330377,0.000249,7]
[394366571,1763497851602,-164.276176,0.000249,7]
[394366572,1763497851611,-163.103612,0.000249,7]
[394366573,1763497851619,-248.330377,0.000249,7]
[394366574,1763497851628,-164.276176,0.000249,7]
[394366575,1763497851637,-163.103612,0.000249,7]
[394366576,1763497851650,-248.330377,0.000249,7]
[394366577,1763497851671,-164.276186,0.000249,7]
[394366578,1763497851686,-163.103613,0.000249,7]
[394366579,1763497851695,-248.330374,0.000249,7]
[394366580,1763497851704,-151.0,0.000249,7]
[394366581,1763497851712,-151.0,0.000249,7]
[394366582,1763497851721,-151.0,0.000249,7]
[394366583,1763497851729,-734335.718367,0.000249,2]
[394366584,1763497851738,-815.44181,0.000249,7]
[394366585,1763497851747,-815.44181,0.000249,7]
[394366586,1763497851756,-744.167509,0.000249,7]
[394366587,1763497851765,-815.44181,0.000249,7]
[394366588,1763497851774,-744.167509,0.000249,7]
[394366589,1763497851783,-815.441801,0.000249,7]
[394366590,1763497851791,-744.167509,0.000249,7]
[394366591,1763497851800,-10000.0,0.000249,7]
[394366592,1763497851809,-151.0,0.000249,7]
[394366593,1763497851818,-744.167502,0.000249,7]
[394366594,1763497851826,-1047.342072,0.000249,7]
[394366595,1763497851835,-10000.0,0.000249,7]
[394366596,1763497851844,-151.0,0.000249,7]
[394366597,1763497851853,-10000.0,0.000249,7]
[394366598,1763497851861,-151.0,0.000249,7]
[394366599,1763497851870,-10000.0,0.000249,7]
[394366600,1763497851879,-421.965315,0.000249,7]
[394366601,1763497851887,-5490.15267355,0.000249,7]
[394366602,1763497851897,-421.965315,0.000249,7]
[394366603,1763497851906,-264.878903,0.000249,7]
[394366604,1763497851914,-421.965315,0.000249,7]
[394366605,1763497851923,-264.878903,0.000249,7]
[394366606,1763497851932,-421.965322,0.000249,7]
[394366607,1763497851941,-264.878903,0.000249,7]
[394366608,1763497851950,-264.878904,0.000249,7]
[394366609,1763497851959,-1047.342072,0.000249,7]
[394366610,1763497851968,-1047.342072,0.000249,7]
[394366611,1763497851977,-1047.342077,0.000249,7]
[394366612,1763497851985,-151.0,0.000249,7]
[394366613,1763497852040,-151.0,0.000249,7]
[394366614,1763497852049,-1852.182764,0.000249,7]
[394366615,1763497852058,-1852.182764,0.000249,7]
[394366616,1763497852068,-166.372651,0.000249,7]
[394366617,1763497852077,-1852.182764,0.000249,7]
[394366618,1763497852086,-1852.182757,0.000249,7]
[394366619,1763497852095,-199.552097,0.000249,7]
[394366620,1763497852104,-199.552097,0.000249,7]
[394366621,1763497852113,-423.764242,0.000249,7]
[394366622,1763497852122,-199.552097,0.000249,7]
[394366623,1763497852131,-423.764242,0.000249,7]
[394366624,1763497852140,-199.552097,0.000249,7]
[394366625,1763497852149,-423.764242,0.000249,7]
[394366626,1763497852158,-423.764241,0.000249,7]
[394366627,1763497852166,-500.0,0.00024905,2]
[394366628,1763497852175,-285.0,0.00024925,2]
[394366629,1763497852184,-500.0,0.00024932,2]
[394366630,1763497852193,-500.0,0.00024959,2]
[394366631,1763497852202,-500.0,0.00024987,2]
[394366632,1763497852211,-94475.29518635,0.00025,5]
[394366633,1763497852220,-232.73793427,0.00025,2]
[394366634,1763497852229,-1081.68503399,0.00025,2]
[394366635,1763497852238,-1988.07784397,0.00025,2]
[394366636,1763497852247,-2665.28982723,0.00025,2]
[394366637,1763497852256,-10364.0,0.00025,2]
[394366638,1763497852265,-150.0,0.00025,2]
[394366639,1763497852274,-300.0,0.00025,30]
[394366640,1763497852283,-668.60732667,0.00025,2]
[394366641,1763497852291,-600.0,0.00025,2]
[394366642,1763497852300,-132134.57441453,0.00025,2]
[394366643,1763497852310,-501.29212503,0.00025,2]
[394366644,1763497852319,-347.41970597,0.00025,2]
[394366645,1763497852328,-500.0,0.00025014,2]
[394366646,1763497852337,-500.0,0.00025042,2]
[394366647,1763497852346,-500.0,0.00025069,2]
[394366648,1763497852355,-500.0,0.00025096,2]
[394366649,1763497852364,-500.0,0.00025124,2]
[394366650,1763497852374,-500.0,0.00025151,2]
[394366651,1763497852384,-423.41019867,0.00025179,2]
[394366652,1763497852393,-250.0,0.00025205,2]
[394366653,1763497852402,-409.60455429,0.00025221,2]
[394366654,1763497852412,-1460.0,0.00025232,2]
[394366655,1763497852422,-5468.87,0.000253,14]
[394366656,1763497852430,-74257.06,0.000253,2]
[394366657,1763497852439,-1000.0,0.00025321,2]
[394366658,1763497852449,-153.29476598,0.00025321,2]
[394366659,1763497852458,-400.77541225,0.000254,7]
[394366660,1763497852467,-300.0,0.00025421,2]
[394366661,1763497852475,-1000.0,0.000255,2]
[394366662,1763497852484,-816.127958,0.00025518,2]
[394366663,1763497852493,-2258.0,0.00025542,2]
[394366664,1763497852502,-2000.0,0.00025625,7]
[394366665,1763497852511,-262.65749865,0.00025753,2]
[394366666,1763497852520,-1202.48662373,0.0002578,2]
[394366667,1763497852529,-1000.0,0.00025868,2]
[394366668,1763497852538,-450.0,0.00025968,2]
[394366669,1763497852548,-527.98819789,0.00026,2]
[394366670,1763497852557,-5962.72440123,0.00026,30]
[394366671,1763497852565,-19900.0,0.00026,2]
[394366672,1763497852575,-816.127958,0.00026136,2]
[394366673,1763497852584,-193.91683724,0.0002616,2]
[394366674,1763497852592,-629.0,0.00026446,2]
[394366675,1763497852601,-988.0,0.00026446,2]
[394366676,1763497852610,-2065.0,0.00026446,2]
[394366677,1763497852619,-457.865,0.00026446,2]
[394366678,1763497852628,-413.0,0.00026446,2]
[394366679,1763497852636,-708.701374,0.00026676,2]
[394366680,1763497852645,-816.127958,0.00026755,2]
[394366681,1763497852654,-3324.41475871,0.00026898,2]
[394366682,1763497852663,-151.0,0.000269,7]
[394366683,1763497852672,-151.0,0.000269,7]
[394366684,1763497852681,-175.03033,0.000269,7]
[394366685,1763497852689,-314.040952,0.000269,7]
[394366686,1763497852698,-314.040952,0.000269,7]
[394366687,1763497852707,-314.040952,0.000269,7]
[394366688,1763497852715,-314.040952,0.000269,7]
[394366689,1763497852724,-151.0,0.000269,7]
[394366690,1763497852733,-235.65331,0.000269,7]
[394366691,1763497852742,-151.0,0.000269,7]
[394366692,1763497852751,-151.0,0.000269,7]
[394366693,1763497852760,-151.0,0.000269,7]
[394366694,1763497852768,-151.0,0.000269,7]
[394366695,1763497852777,-151.0,0.000269,7]
[394366696,1763497852787,-151.0,0.000269,7]
[394366697,1763497852796,-343.286685,0.000269,7]
[394366698,1763497852805,-343.286685,0.000269,7]
[394366699,1763497852814,-151.0,0.000269,7]
[394366700,1763497852823,-343.286685,0.000269,7]
[394366701,1763497852832,-151.0,0.000269,7]
[394366702,1763497852841,-343.286685,0.000269,7]
[394366703,1763497852850,-316.889578,0.000269,7]
[394366704,1763497852859,-316.889578,0.000269,7]
[394366705,1763497852868,-316.889578,0.000269,7]
[394366706,1763497852877,-316.889578,0.000269,7]
[394366707,1763497852886,-151.0,0.000269,7]
[394366708,1763497852897,-151.0,0.000269,7]
[394366709,1763497852907,-151.0,0.000269,7]
[394366710,1763497852917,-151.0,0.000269,7]
[394366711,1763497852926,-151.0,0.000269,7]
[394366712,1763497852935,-151.0,0.000269,7]
[394366713,1763497852944,-151.0,0.000269,7]
[394366714,1763497852954,-151.0,0.000269,7]
[394366715,1763497852963,-151.0,0.000269,7]
[394366716,1763497852973,-151.0,0.000269,7]
[394366717,1763497852982,-151.0,0.000269,7]
[394366718,1763497852991,-151.0,0.000269,7]
[394366719,1763497853000,-151.0,0.000269,7]
[394366720,1763497853010,-277.743843,0.000269,7]
[394366721,1763497853019,-277.743843,0.000269,7]
[394366722,1763497853028,-277.743843,0.000269,7]
[394366723,1763497853037,-277.74385,0.000269,7]
[394366724,1763497853047,-5468.87,0.000269,14]
[394366725,1763497853056,-312.0,0.00026925,2]
[394366726,1763497853065,-5762.018141,0.00027,30]
[394366727,1763497853074,-400.77541225,0.00027,30]
[394366728,1763497853083,-500.0,0.0002725,2]
[394366729,1763497853092,-1000.0,0.00027367,30]
[394366730,1763497853102,-791.0,0.00027367,30]
[394366731,1763497853111,-816.127958,0.00027373,2]
[394366732,1763497853121,-500.0,0.00027397,2]
[394366733,1763497853130,-151.0,0.00027397,2]
[394366734,1763497853139,-204.95524923,0.00027397,2]
[394366735,1763497853151,-1000.0,0.00027397,2]
[394366736,1763497853160,-1000.0,0.00027397,2]
[394366737,1763497853169,-1000.0,0.00027397,2]
[394366738,1763497853178,-1000.0,0.00027397,2]
[394366739,1763497853187,-1000.0,0.00027397,2]
[394366740,1763497853196,-1000.0,0.00027397,2]
[394366741,1763497853206,-1000.0,0.00027397,2]
[394366742,1763497853215,-973.00772946,0.00027397,2]
[394366743,1763497853225,-151.0,0.00027397,7]
[394366744,1763497853234,-151.0,0.00027397,7]
[394366745,1763497853242,-151.0,0.00027397,7]
[394366746,1763497853251,-151.0,0.00027397,7]
[394366747,1763497853260,-151.0,0.00027397,7]
[394366748,1763497853270,-151.0,0.00027397,7]
[394366749,1763497853279,-151.0,0.00027397,7]
[394366750,1763497853288,-151.0,0.00027397,7]
[394366751,1763497853297,-258.270387,0.00027397,7]
[394366752,1763497853307,-291.696761,0.00027397,7]
[394366753,1763497853316,-151.0,0.00027397,7]
[394366754,1763497853326,-153.718935,0.00027397,7]
[394366755,1763497853335,-151.879424,0.00027397,7]
[394366756,1763497853344,-150.0,0.00027397,5]
[394366757,1763497853353,-202.31429215,0.00027397,5]
[394366758,1763497853363,-2761.97,0.000274,2]
[394366759,1763497853372,-500.0,0.00027424,2]
[394366760,1763497853385,-151.0,0.00027424,2]
[394366761,1763497853394,-500.0,0.00027452,2]
[394366762,1763497853406,-151.0,0.00027452,2]
[394366763,1763497853416,-500.0,0.00027479,2]
[394366764,1763497853425,-238.87176173,0.00027479,2]
[394366765,1763497853434,-28753.75663527,0.000275,2]
[394366766,1763497853443,-2000.0,0.000275,7]
[394366767,1763497853455,-500.0,0.00027507,2]
[394366768,1763497853464,-500.0,0.00027534,2]
[394366769,1763497853474,-500.0,0.00027561,2]
[394366770,1763497853483,-500.0,0.00027589,2]
[394366771,1763497853492,-2028.1,0.000276,7]
[394366772,1763497853502,-500.0,0.00027616,2]
[394366773,1763497853512,-500.0,0.00027644,2]
[394366774,1763497853521,-589.96364609,0.00027661,5]
[394366775,1763497853530,-500.0,0.00027671,2]
[394366776,1763497853539,-500.0,0.00027698,2]
[394366777,1763497853549,-500.0,0.00027726,2]
[394366778,1763497853558,-500.0,0.00027753,2]
[394366779,1763497853568,-500.0,0.00027781,2]
[394366780,1763497853578,-500.0,0.00027808,2]
[394366781,1763497853587,-500.0,0.00027835,2]
[394366782,1763497853597,-500.0,0.00027863,2]
[394366783,1763497853607,-500.0,0.0002789,2]
[394366784,1763497853616,-500.0,0.00027918,2]
[394366785,1763497853626,-500.0,0.00027945,2]
[394366786,1763497853635,-250.0,0.00027945,5]
[394366787,1763497853645,-3162.0,0.00027959,2]
[394366788,1763497853657,-500.0,0.00027972,2]
[394366789,1763497853666,-187.59617175,0.00027974,2]
[394366790,1763497853676,-500.0,0.00028,2]
[394366791,1763497853685,-400.77541225,0.00028,10]
[394366792,1763497853695,-15265.41380508,0.00028,2]
[394366793,1763497853705,-500.0,0.00028027,2]
[394366794,1763497853714,-500.0,0.00028055,2]
[394366795,1763497853724,-500.0,0.00028082,2]
[394366796,1763497853733,-409.04593857,0.00028098,2]
[394366797,1763497853743,-500.0,0.00028109,2]
[394366798,1763497853752,-500.0,0.00028137,2]
[394366799,1763497853761,-562.78851536,0.00028143,2]
[394366800,1763497853771,-500.0,0.00028164,2]
[394366801,1763497853780,-10000.0,0.00028165,2]
[394366802,1763497853790,-520.65611968,0.00028192,2]
[394366803,1763497853799,-562.78851536,0.00028202,5]
[394366804,1763497853808,-220.72891664,0.00028219,2]
[394366805,1763497853817,-409.04593857,0.0002822,9]
[394366806,1763497853827,-562.78851536,0.0002826,9]
[394366807,1763497853835,-471.00149699,0.00028265,4]
[394366808,1763497853845,-564.34997564,0.00028265,4]
[394366809,1763497853854,-908.62390901,0.0002827,2]
[394366810,1763497853863,-562.78851536,0.00028319,13]
[394366811,1763497853872,-409.04593857,0.00028341,17]
[394366812,1763497853881,-562.78851536,0.00028378,16]
[394366813,1763497853891,-5468.87,0.000284,14]
[394366814,1763497853902,-246.47954324,0.00028427,30]
[394366815,1763497853911,-562.78851536,0.00028437,20]
[394366816,1763497853921,-409.04593857,0.00028463,25]
[394366817,1763497853930,-350.0,0.00028493,5]
[394366818,1763497853939,-562.78851536,0.00028496,24]
[394366819,1763497853949,-57492.61864409,0.000285,7]
[394366820,1763497853959,-5000.0,0.00028522,2]
[394366821,1763497853968,-562.78851536,0.00028554,28]
[394366822,1763497853978,-409.04593857,0.00028585,32]
[394366823,1763497853987,-562.78851536,0.00028613,31]
[394366824,1763497853995,-562.78851536,0.00028672,35]
[394366825,1763497854005,-409.04593857,0.00028706,40]
[394366826,1763497854014,-562.78851536,0.00028731,39]
[394366827,1763497854023,-26760.38542251,0.0002876,2]
[394366828,1763497854033,-190.381165,0.00028767,60]
[394366829,1763497854122,-562.78851536,0.0002879,42]
[394366830,1763497854132,-187.59617175,0.00028822,56]
[394366831,1763497854141,-409.04593857,0.00028828,48]
[394366832,1763497854150,-562.78851536,0.00028849,46]
[394366833,1763497854160,-562.78851536,0.00028907,50]
[394366834,1763497854169,-339.0,0.00028925,2]
[394366835,1763497854178,-362.40676897,0.00028939,4]
[394366836,1763497854188,-191.23525029,0.00028949,4]
[394366837,1763497854197,-409.04593857,0.0002895,56]
[394366838,1763497854206,-562.78851536,0.00028966,54]
[394366839,1763497854214,-562.78851536,0.00029025,57]
[394366840,1763497854223,-450.0,0.00029041,5]
[394366841,1763497854232,-162.28020674,0.0002905,2]
[394366842,1763497854241,-409.04593857,0.00029071,63]
[394366843,1763497854250,-562.78851536,0.00029084,61]
[394366844,1763497854259,-2761.97,0.000291,2]
[394366845,1763497854268,-154.268131,0.000291,7]
[394366846,1763497854277,-151.0,0.000291,7]
[394366847,1763497854286,-151.0,0.000291,7]
[394366848,1763497854296,-314.040952,0.000291,7]
[394366849,1763497854305,-314.040952,0.000291,7]
[394366850,1763497854314,-314.040952,0.000291,7]
[394366851,1763497854323,-314.040952,0.000291,7]
[394366852,1763497854332,-151.0,0.000291,7]
[394366853,1763497854340,-151.0,0.000291,7]
[394366854,1763497854349,-151.0,0.000291,7]
[394366855,1763497854358,-151.0,0.000291,7]
[394366856,1763497854367,-151.0,0.000291,7]
[394366857,1763497854379,-151.0,0.000291,7]
[394366858,1763497854388,-151.0,0.000291,7]
[394366859,1763497854398,-343.286685,0.000291,7]
[394366860,1763497854407,-343.286685,0.000291,7]
[394366861,1763497854416,-151.0,0.000291,7]
[394366862,1763497854426,-343.286685,0.000291,7]
[394366863,1763497854435,-151.0,0.000291,7]
[394366864,1763497854444,-343.286685,0.000291,7]
[394366865,1763497854455,-316.889578,0.000291,7]
[394366866,1763497854463,-316.889578,0.000291,7]
[394366867,1763497854472,-316.889578,0.000291,7]
[394366868,1763497854482,-316.889578,0.000291,7]
[394366869,1763497854490,-151.0,0.000291,7]
[394366870,1763497854499,-151.0,0.000291,7]
[394366871,1763497854508,-151.0,0.000291,7]
[394366872,1763497854516,-151.0,0.000291,7]
[394366873,1763497854526,-226.57732,0.000291,7]
[394366874,1763497854535,-562.78851536,0.00029143,65]
[394366875,1763497854544,-2255.14250266,0.00029168,4]
[394366876,1763497854553,-409.04593857,0.00029193,71]
[394366877,1763497854562,-562.78851536,0.00029201,69]
[394366878,1763497854571,-770.73,0.00029221,2]
[394366879,1763497854580,-562.78851536,0.0002926,72]
[394366880,1763497854590,-409.04593857,0.00029315,79]
[394366881,1763497854599,-562.78851536,0.00029319,76]
[394366882,1763497854608,-2000.0,0.00029375,7]
[394366883,1763497854617,-562.78851536,0.00029378,80]
[394366884,1763497854626,-409.04593857,0.00029436,86]
[394366885,1763497854634,-562.78851536,0.00029437,83]
[394366886,1763497854643,-629.0,0.00029446,2]
[394366887,1763497854653,-988.0,0.00029446,2]
[394366888,1763497854662,-2065.0,0.00029446,2]
[394366889,1763497854671,-413.0,0.00029446,2]
[394366890,1763497854679,-413.0,0.00029446,2]
[394366891,1763497854688,-562.78851536,0.00029495,87]
[394366892,1763497854697,-1449.62707589,0.000295,4]
[394366893,1763497854711,-562.78851536,0.00029554,91]
[394366894,1763497854720,-409.04593857,0.00029558,94]
[394366895,1763497854729,-550.0,0.00029589,5]
[394366896,1763497854738,-2224.32135669,0.00029612,2]
[394366897,1763497854747,-562.78851536,0.00029613,95]
[394366898,1763497854756,-562.78851536,0.00029672,98]
[394366899,1763497854764,-409.04593857,0.00029679,102]
[394366900,1763497854773,-5468.87,0.000297,14]
[394366901,1763497854782,-562.78851536,0.00029731,102]
[394366902,1763497854791,-631.06460423,0.00029749,2]
[394366903,1763497854800,-562.78851536,0.0002979,106]
[394366904,1763497854809,-409.04593857,0.00029801,110]
[394366905,1763497854818,-43658.51139367,0.0003,30]
[394366906,1763497854827,-14851.8354943,0.0003,2]
[394366907,1763497854836,-21893.16634838,0.0003,2]
[394366908,1763497854845,-269.02703775,0.0003,2]
[394366909,1763497854853,-418.65181736,0.0003,2]
[394366910,1763497854863,-900.0,0.0003,2]
[394366911,1763497854872,-866.68915041,0.0003,14]
[394366912,1763497854881,-400.77541225,0.0003,30]
[394366913,1763497854890,-151.0,0.0003,14]
[394366914,1763497854900,-2224.32135669,0.00030014,2]
[394366915,1763497854909,-3258.39925982,0.0003006,4]
[394366916,1763497854918,-764.17606017,0.0003007,4]
[394366917,1763497854927,-1000.0,0.00030104,30]
[394366918,1763497854936,-1000.0,0.00030104,30]
[394366919,1763497854945,-287.14068178,0.0003013,2]
[394366920,1763497854954,-309.41949499,0.00030137,5]
[394366921,1763497854963,-5000.0,0.00030147,2]
[394366922,1763497854972,-2224.32135669,0.00030195,2]
[394366923,1763497854981,-674.45280183,0.0003022,2]
[394366924,1763497854990,-151.13690597,0.00030229,10]
[394366925,1763497854998,-29590.7204347,0.00030253,2]
[394366926,1763497855008,-2502.8369069,0.00030253,2]
[394366927,1763497855017,-190.55257422,0.00030329,39]
[394366928,1763497855026,-1449.0233023,0.00030553,2]
[394366929,1763497855035,-2224.32135669,0.00030587,2]
[394366930,1763497855044,-330.55780605,0.00030597,2]
[394366931,1763497855054,-698.0,0.00030604,2]
[394366932,1763497855063,-617.36887227,0.00030673,4]
[394366933,1763497855072,-3648.29898522,0.00030793,2]
[394366934,1763497855081,-2224.32135669,0.00030871,2]
[394366935,1763497855091,-366.0,0.00030925,2]
[394366936,1763497855100,-151.0,0.00030942,31]
[394366937,1763497855108,-305.30108462,0.0003099,2]
[394366938,1763497855118,-403.13020402,0.00030995,4]
[394366939,1763497855127,-3648.29898522,0.00030998,2]
[394366940,1763497855136,-2761.97,0.00031,2]
[394366941,1763497855145,-624.73519233,0.00031003,2]
[394366942,1763497855155,-241.98445979,0.00031003,2]
[394366943,1763497855164,-2224.32135669,0.00031041,2]
[394366944,1763497855173,-5468.87,0.000311,14]
[394366945,1763497855182,-166.75758052,0.00031247,2]
[394366946,1763497855191,-2000.0,0.0003125,7]
[394366947,1763497855200,-2224.32135669,0.00031281,2]
[394366948,1763497855208,-3648.29898522,0.00031389,2]
[394366949,1763497855217,-2028.1,0.000314,7]
[394366950,1763497855227,-151.0,0.000314,31]
[394366951,1763497855235,-151.0,0.000314,31]
[394366952,1763497855244,-314.040952,0.000314,31]
[394366953,1763497855252,-314.040952,0.000314,31]
[394366954,1763497855261,-314.040952,0.000314,31]
[394366955,1763497855270,-314.040944,0.000314,31]
[394366956,1763497855279,-151.0,0.000314,31]
[394366957,1763497855288,-151.0,0.000314,31]
[394366958,1763497855297,-151.0,0.000314,31]
[394366959,1763497855307,-151.0,0.000314,31]
[394366960,1763497855315,-151.0,0.000314,31]
[394366961,1763497855324,-151.0,0.000314,31]
[394366962,1763497855333,-151.0,0.000314,31]
[394366963,1763497855342,-343.286685,0.000314,31]
[394366964,1763497855350,-343.286685,0.000314,31]
[394366965,1763497855359,-151.0,0.000314,31]
[394366966,1763497855368,-343.286685,0.000314,31]
[394366967,1763497855381,-343.286683,0.000314,31]
[394366968,1763497855390,-2224.32135675,0.00031536,2]
[394366969,1763497855399,-3648.29898522,0.00031616,2]
[394366970,1763497855409,-5000.0,0.00031772,2]
[394366971,1763497855419,-1541.46,0.00031878,2]
[394366972,1763497855428,-1073.35,0.00032,30]
[394366973,1763497855437,-1039.78835999,0.00032,7]
[394366974,1763497855446,-1000.0,0.00032,14]
[394366975,1763497855458,-90000.0,0.00032,3]
[394366976,1763497855467,-1073.35,0.0003218,30]
[394366977,1763497855475,-5753.12548702,0.00032297,2]
[394366978,1763497855484,-151.0,0.000323,31]
[394366979,1763497855493,-151.0,0.000323,31]
[394366980,1763497855502,-151.0,0.000323,31]
[394366981,1763497855511,-1073.35,0.0003236,30]
[394366982,1763497855520,-629.0,0.00032446,2]
[394366983,1763497855529,-988.0,0.00032446,2]
[394366984,1763497855538,-2065.0,0.00032446,2]
[394366985,1763497855547,-413.0,0.00032446,2]
[394366986,1763497855556,-413.0,0.00032446,2]
[394366987,1763497855565,-500.0,0.00032876,2]
[394366988,1763497855574,-160.0,0.00032876,2]
[394366989,1763497855582,-840.01264872,0.00032877,3]
[394366990,1763497855591,-151.0,0.00032877,31]
[394366991,1763497855600,-151.0,0.00032877,31]
[394366992,1763497855609,-262.066433,0.00032877,31]
[394366993,1763497855618,-151.0,0.00032877,31]
[394366994,1763497855628,-151.0,0.00032877,31]
[394366995,1763497855637,-151.0,0.00032877,31]
[394366996,1763497855646,-151.0,0.00032877,31]
[394366997,1763497855656,-151.0,0.00032877,31]
[394366998,1763497855666,-153.624965,0.00032877,31]
[394366999,1763497855675,-6763.6,0.00032877,10]
[394367000,1763497855684,-5636.33,0.00032877,10]
[394367001,1763497855693,-4696.94,0.00032877,10]
[394367002,1763497855702,-500.0,0.00032877,7]
[394367003,1763497855711,-500.0,0.00032877,7]
[394367004,1763497855719,-500.0,0.00032877,7]
[394367005,1763497855728,-400.91873902,0.00032877,7]
[394367006,1763497855736,-816.127958,0.000329,10]
[394367007,1763497855746,-195.64000348,0.000329,120]
[394367008,1763497855755,-164.21721063,0.000329,120]
[394367009,1763497855763,-160.52477459,0.000329,120]
[394367010,1763497855772,-177.83846928,0.000329,120]
[394367011,1763497855782,-279.97507258,0.000329,120]
[394367012,1763497855791,-5468.87,0.000329,30]
[394367013,1763497855800,-393.0,0.00032925,120]
[394367014,1763497855809,-160.0,0.00032932,2]
[394367015,1763497855818,-160.0,0.00032942,2]
[394367016,1763497855827,-400.77541225,0.00032948,2]
[394367017,1763497855836,-254.462253,0.0003298,31]
[394367018,1763497855845,-88617.52319825,0.00033,2]
[394367019,1763497855854,-151.0,0.00033,31]
[394367020,1763497855863,-151.0,0.00033,31]
[394367021,1763497855872,-151.0,0.00033,31]
[394367022,1763497855881,-167.61749056,0.00033031,10]
[394367023,1763497855890,-160.02114505,0.00033031,10]
[394367024,1763497855900,-2761.97,0.000331,14]
[394367025,1763497855909,-177.0,0.00033105,120]
[394367026,1763497855919,-1000.0,0.00033114,30]